bitfinex-derivatives/quotes_ETHF0:USTF0_20250528
["timestamp","ask_amount","ask_price","bid_price","bid_amount"]
[1748390401911,3.76193313,2661.3,2661.2,1.976]
[1748390403911,4.51309313,2661.3,2661.2,2.72719]
[1748390404312,0.75131,2660.9,2660.8,0.75127]
[1748390405008,1.24021622,2660.9,2660.8,0.75127]
[1748390405316,2.73416,2661.0,2660.9,0.75127]
[1748390405504,0.7513,2660.9,2660.8,0.75128]
[1748390405812,0.7513,2660.8,2660.7,2.06043]
[1748390406010,0.7513,2660.8,2660.7,1.3091]
[1748390406411,2.0717,2660.8,2660.7,1.3091]
[1748390406615,2.0717,2660.8,2660.7,2.06043]
[1748390406812,0.7513,2660.8,2660.7,2.06043]
[1748390407014,0.7513,2660.8,2660.7,2.68213]
[1748390407411,0.7513,2660.8,2660.7,1.9308]
[1748390407722,2.0717,2660.8,2660.7,1.3091]
[1748390408512,0.7513,2660.8,2660.7,1.3091]
[1748390410116,0.7513,2660.8,2660.7,2.06043]
[1748390411225,0.7513,2660.8,2660.7,1.3091]
[1748390412129,1.9814,2660.8,2660.7,1.3091]
[1748390412427,3.10838,2660.8,2660.3,3.2078]
[1748390412617,0.75141,2660.4,2660.3,3.2078]
[1748390412921,0.75141,2660.4,2660.3,4.5117]
[1748390413118,0.0056356,2660.6,2660.5,0.75138]
[1748390413528,0.0056356,2660.6,2660.5,2.05528]
[1748390414023,0.7569856,2660.6,2660.5,2.05528]
[1748390414439,0.0056356,2660.6,2660.5,2.05528]
[1748390414642,0.7569856,2660.6,2660.5,2.05528]
[1748390415739,0.7569856,2660.6,2660.5,1.3039]
[1748390415937,0.7569856,2660.6,2660.5,2.05528]
[1748390416236,0.7569856,2660.6,2660.5,0.75138]
[1748390416931,0.75138,2660.5,2660.4,1.2844]
[1748390417238,0.7515,2660.1,2660.0,0.75152]
[1748390417535,0.75152,2660.0,2659.9,1.2974]
[1748390417728,5.08635,2660.4,2660.3,0.75144]
[1748390417729,3.2078,2660.4,2660.3,0.75144]
[1748390417925,0.7570056,2660.6,2660.5,0.75138]
[1748390418133,0.75141,2660.4,2660.3,0.6557]
[1748390418340,0.75147,2660.2,2660.1,3.95928]
[1748390418532,0.75147,2660.2,2660.1,3.2078]
[1748390418734,0.75149,2660.2,2660.1,0.75148]
[1748390418937,0.6778,2660.2,2659.8,1.2776]
[1748390419134,0.75158,2659.8,2659.7,3.95941]
[1748390419336,1.9875,2660.2,2659.7,5.08679]
[1748390419538,0.6778,2660.2,2660.1,0.7515]
[1748390420036,1.42927,2660.2,2660.1,0.7515]
[1748390420240,1.42927,2660.2,2659.9,1.2974]
[1748390420241,0.75152,2660.0,2659.9,2.04893]
[1748390420530,0.75151,2660.1,2660.0,0.7515]
[1748390420735,2.7711,2660.2,2660.1,0.7515]
[1748390421238,0.75152,2660.1,2660.0,0.75151]
[1748390421437,0.6778,2660.2,2660.1,0.7515]
[1748390421736,3.95922,2660.4,2660.3,0.75144]
[1748390421936,3.2078,2660.4,2660.3,0.75144]
[1748390422529,0.0056356,2660.6,2660.4,0.75139]
[1748390422734,0.7514,2660.5,2660.4,2.09339]
[1748390423136,4.53878,2660.5,2660.0,3.656]
[1748390423340,0.75147,2660.2,2660.1,1.2478]
[1748390424046,0.75155,2659.9,2659.8,4.9281]
[1748390425332,0.75155,2659.9,2659.8,0.6296]
[1748390425538,0.75158,2659.8,2659.7,1.2478]
[1748390426046,1.3206,2660.1,2659.7,1.2478]
[1748390426232,0.75153,2660.1,2660.0,0.75152]
[1748390426438,0.75155,2660.0,2659.9,0.75153]
[1748390426638,0.75155,2660.0,2659.9,1.2623]
[1748390427146,0.75155,2660.0,2659.9,2.01385]
[1748390427649,0.75155,2660.0,2659.9,1.2623]
[1748390428039,0.75161,2659.7,2659.6,6.8648]
[1748390428241,0.75161,2659.7,2659.6,8.1271]
[1748390428940,0.75161,2659.7,2659.6,8.87874]
[1748390429641,0.75155,2660.0,2659.9,0.75152]
[1748390429845,0.75147,2660.3,2660.2,0.75144]
[1748390430247,0.7515,2660.2,2660.1,0.75147]
[1748390430433,0.7515,2660.2,2660.1,1.2817]
[1748390431945,2.0544,2660.2,2660.1,1.2817]
[1748390432645,0.75152,2660.0,2659.9,3.657]
[1748390433340,0.75152,2660.0,2659.9,4.40855]
[1748390434041,0.75152,2660.0,2659.9,3.657]
[1748390435147,0.75152,2660.0,2659.9,5.001]
[1748390435641,0.75152,2660.0,2659.9,5.75255]
[1748390437541,5.08627,2660.5,2659.9,5.001]
[1748390437743,0.75146,2660.4,2660.3,0.75141]
[1748390437948,0.7515,2660.2,2660.1,2.04057]
[1748390438142,0.7515,2660.2,2660.1,2.72187]
[1748390449254,0.75144,2660.4,2660.3,0.75141]
[1748390449452,0.0056356,2660.6,2660.5,0.75138]
[1748390449650,3.2078,2661.6,2661.2,0.75119]
[1748390449846,3.2078,2661.6,2661.2,4.40719]
[1748390450353,0.36345955,2661.3,2661.2,10.68449]
[1748390450658,0.0056356,2661.5,2661.3,1.87789]
[1748390450856,0.0056356,2661.5,2661.4,3.95893]
[1748390451057,0.7567356,2661.5,2661.4,3.656]
[1748390451259,0.75116,2661.3,2661.2,4.4851]
[1748390451558,0.0056356,2661.5,2661.2,8.1411]
[1748390451850,0.75116,2661.3,2661.2,8.1411]
[1748390452255,0.75116,2661.3,2661.2,4.2924]
[1748390454257,0.75116,2661.3,2661.2,7.5002]
[1748390454457,0.75116,2661.3,2661.2,8.126]
[1748390454757,0.75116,2661.3,2661.2,9.3932]
[1748390454957,0.75116,2661.3,2661.2,8.7674]
[1748390455557,0.75116,2661.3,2661.2,6.8638]
[1748390455855,0.75116,2661.3,2661.2,3.2078]
[1748390456061,0.75124,2661.0,2660.9,8.13]
[1748390459259,0.75124,2661.0,2660.9,3.655]
[1748390459459,0.75141,2660.4,2660.0,3.655]
[1748390459657,0.75141,2660.4,2660.1,3.2078]
[1748390459859,0.75141,2660.4,2660.2,0.75146]
[1748390460060,0.75141,2660.4,2660.3,1.9424356]
[1748390460265,0.75141,2660.4,2660.3,2.5739356]
[1748390460560,0.75141,2660.4,2660.3,3.3253756]
[1748390460760,3.2078,2661.0,2660.3,2.5739356]
[1748390461070,0.75135,2660.6,2660.5,3.95916]
[1748390461264,0.75135,2660.6,2660.5,5.27886]
[1748390461557,0.75133,2660.8,2660.6,0.75133]
[1748390461763,0.7513,2660.8,2660.7,1.9926]
[1748390461958,1.2553,2661.1,2660.8,0.7513]
[1748390462163,1.2553,2661.1,2660.9,4.9747]
[1748390465265,2.00652,2661.1,2660.9,4.9747]
[1748390465468,0.75135,2660.6,2660.5,3.2078]
[1748390465856,0.75135,2660.7,2660.5,3.2078]
[1748390466056,1.3326,2660.6,2660.5,3.2078]
[1748390466861,1.3326,2660.6,2660.5,3.95918]
[1748390467062,0.6725,2660.8,2660.5,3.2078]
[1748390467269,2.0051,2660.8,2660.7,0.75133]
[1748390468468,2.7564,2660.8,2660.7,0.75133]
[1748390468764,2.0051,2660.8,2660.7,0.75133]
[1748390469373,2.7564,2660.8,2660.6,2.04645]
[1748390469962,2.7564,2660.8,2660.7,0.75133]
[1748390470468,0.75133,2660.7,2660.6,2.04643]
[1748390471468,2.04853,2660.7,2660.6,2.04643]
[1748390472369,2.04853,2660.7,2660.6,1.2951]
[1748390472567,0.75135,2660.6,2660.5,0.75138]
[1748390472771,2.09595,2660.6,2660.5,0.75138]
[1748390472967,0.75138,2660.5,2660.4,3.681]
[1748390473168,0.75141,2660.4,2660.3,0.0056356]
[1748390473373,2.76951,2660.5,2660.3,0.0056356]
[1748390473564,0.6725,2660.8,2660.7,0.75133]
[1748390473768,1.4238,2660.8,2660.7,0.75133]
[1748390474063,1.3446,2661.2,2661.1,0.75121]
[1748390474373,2.0958,2661.2,2661.1,0.75121]
[1748390475461,2.7762,2661.2,2661.1,0.75121]
[1748390476070,2.7762,2661.2,2660.9,1.2999]
[1748390476376,0.75138,2660.5,2660.4,0.7514]
[1748390477572,0.75141,2660.4,2660.3,0.0056356]
[1748390478075,1.9646,2660.4,2660.3,0.7570756]
[1748390478377,1.43176,2660.6,2660.5,0.75138]
[1748390478574,3.39175,2660.6,2660.5,0.75138]
[1748390480075,3.39177,2660.6,2660.5,0.75138]
[1748390480476,0.75141,2660.4,2660.3,0.7570556]
[1748390480679,4.5188,2660.6,2660.4,0.75141]
[1748390480680,2.0386,2660.5,2660.4,0.75141]
[1748390481175,42.8386,2660.5,2660.4,0.75141]
[1748390481377,42.0872,2660.5,2660.4,0.75141]
[1748390481568,1.2872,2660.5,2660.4,0.75141]
[1748390481769,2.03858,2660.5,2660.4,0.75141]
[1748390482574,0.75141,2660.4,2660.3,2.6811556]
[1748390482771,0.75141,2660.4,2660.3,0.7570556]
[1748390482772,1.3601,2660.4,2660.3,0.7570556]
[1748390483371,1.3601,2660.4,2660.3,2.0219556]
[1748390483772,1.3532,2660.6,2660.5,0.75138]
[1748390486481,2.10455,2660.6,2660.5,0.75138]
[1748390486679,1.3532,2660.6,2660.3,0.0056356]
[1748390486874,0.75141,2660.4,2660.3,0.0056356]
[1748390487073,0.75141,2660.4,2660.3,0.7570756]
[1748390488080,40.8,2660.4,2660.3,0.7570756]
[1748390488781,41.55141,2660.4,2660.3,0.7570756]
[1748390489079,42.082,2660.4,2660.3,0.7570756]
[1748390490378,0.6804,2660.6,2660.5,0.75138]
[1748390490576,3.755,2661.9,2660.5,0.75138]
[1748390490577,3.8437,2661.4,2661.3,0.75116]
[1748390490785,5.72571557,2661.4,2661.3,0.75116]
[1748390491083,5.8405,2661.4,2661.3,0.75116]
[1748390492786,3.2078,2661.4,2661.3,0.75116]
[1748390498483,4.5637,2661.4,2661.3,0.75116]
[1748390498684,0.0056356,2661.5,2661.4,0.75113]
[1748390499086,0.7567356,2661.5,2661.4,0.75113]
[1748390502086,0.75116,2661.3,2661.2,1.3291]
[1748390502389,4.5689,2661.4,2661.0,3.2078]
[1748390502689,0.75124,2661.1,2661.0,0.75122]
[1748390503087,2.01774,2661.1,2661.0,0.75122]
[1748390503284,1.87816,2661.0,2660.4,3.884]
[1748390503595,0.75135,2660.7,2660.6,0.75132]
[1748390503890,0.75135,2660.7,2660.4,5.6974]
[1748390503891,3.95912,2660.8,2660.7,0.75133]
[1748390504485,0.75137,2660.7,2660.6,0.75134]
[1748390504790,1.42687,2660.7,2660.6,0.75134]
[1748390504985,0.6755,2660.7,2660.6,0.75134]
[1748390505193,1.42683,2660.7,2660.6,0.75134]
[1748390505379,0.75138,2660.5,2660.4,1.3342]
[1748390505587,0.75141,2660.4,2660.3,0.0056356]
[1748390505786,3.9592,2660.5,2660.4,0.75141]
[1748390512496,0.75141,2660.4,2660.3,0.7570456]
[1748390514398,0.75141,2660.4,2660.3,0.0056356]
[1748390514590,0.75155,2659.9,2659.8,0.75157]
[1748390514901,5.08651,2660.2,2659.7,3.19786]
[1748390515101,0.75155,2660.0,2659.9,0.75151]
[1748390516006,0.6427,2660.1,2660.0,0.75152]
[1748390516206,0.0056356,2660.2,2660.1,0.7515]
[1748390521106,1.2494356,2660.2,2660.1,0.7515]
[1748390521510,2.0009056,2660.2,2660.1,0.7515]
[1748390521810,1.2494356,2660.2,2660.1,0.7515]
[1748390522511,1.2494356,2660.2,2660.1,2.0537]
[1748390523613,0.0056356,2660.2,2660.1,2.0537]
[1748390523808,0.0056356,2660.2,2660.1,5.2615]
[1748390526110,3.2078,2660.9,2660.8,0.7513]
[1748390526511,5.1489,2660.9,2660.8,0.7513]
[1748390527418,5.90017,2660.9,2660.8,0.7513]
[1748390530313,5.1489,2660.9,2660.6,0.0056356]
[1748390530513,0.75133,2660.7,2660.6,0.7569756]
[1748390531118,0.75133,2660.7,2660.6,0.0056356]
[1748390531627,2.00572277,2660.7,2660.6,0.0056356]
[1748390531817,3.35432277,2660.7,2660.6,0.0056356]
[1748390539422,2.09993,2660.7,2660.6,0.0056356]
[1748390539625,3.35558613,2660.7,2660.6,0.0056356]
[1748390542026,44.15558613,2660.7,2660.6,0.0056356]
[1748390543823,0.75155,2659.9,2658.8,3.75928]
[1748390544127,0.75164,2659.6,2659.5,3.2078]
[1748390544330,2.5371,2659.8,2659.7,0.75161]
[1748390544532,4.54377767,2659.8,2659.7,0.75161]
[1748390545321,0.75161,2659.7,2659.6,1.3457]
[1748390545526,2.00668767,2659.7,2659.6,2.09732]
[1748390547027,2.00668767,2659.7,2659.6,1.3457]
[1748390547231,2.00668767,2659.7,2659.6,2.09734]
[1748390547431,3.23488767,2659.7,2659.6,2.09734]
[1748390548335,2.00480577,2659.7,2659.6,2.09734]
[1748390549535,0.75161,2659.7,2659.6,2.09734]
[1748390552634,2.00941,2659.7,2659.6,2.09734]
[1748390553734,0.75172,2659.3,2658.9,3.2078]
[1748390553938,0.75184,2658.9,2658.8,0.625]
[1748390554134,3.2078,2659.3,2659.2,0.75175]
[1748390554335,0.7573456,2659.4,2659.3,0.75172]
[1748390555933,0.7573456,2659.4,2659.3,2.02712]
[1748390556128,0.7573456,2659.4,2659.3,0.75172]
[1748390556335,0.75178,2659.1,2659.0,0.75181]
[1748390556534,0.75178,2659.1,2659.0,1.38001]
[1748390558339,0.75178,2659.2,2659.1,0.75176]
[1748390559734,0.75178,2659.1,2659.0,0.6282]
[1748390560735,0.75178,2659.1,2659.0,1.38001]
[1748390562543,0.0056356,2659.4,2659.1,0.75178]
[1748390562743,0.0056356,2659.4,2659.3,0.75172]
[1748390563438,0.7573256,2659.4,2659.3,0.75172]
[1748390564043,0.0056356,2659.4,2659.3,3.95952]
[1748390568042,3.2078,2660.3,2659.9,0.75155]
[1748390568350,0.75149,2660.2,2660.1,0.75147]
[1748390570646,0.75149,2660.2,2660.1,2.11247]
[1748390571049,0.75149,2660.2,2660.1,1.361]
[1748390571351,0.75161,2659.8,2659.7,0.75157]
[1748390571548,0.75161,2659.7,2659.6,5.2148]
[1748390571746,0.75166,2659.6,2659.5,0.75164]
[1748390572455,0.75166,2659.6,2659.5,2.11264]
[1748390572653,2.08696,2659.6,2659.5,2.11264]
[1748390573153,0.75167,2659.5,2659.4,1.39767]
[1748390573352,2.08697,2659.5,2659.4,1.39767]
[1748390573550,2.08697,2659.5,2659.4,0.75167]
[1748390573751,0.75169,2659.4,2659.3,2.05661]
[1748390573953,2.08699,2659.4,2659.3,2.05661]
[1748390574153,0.75172,2659.3,2659.2,0.75173]
[1748390574350,2.75282,2659.3,2659.2,0.75173]
[1748390574547,0.6658,2659.3,2659.2,0.75173]
[1748390574850,0.6658,2659.3,2659.2,2.05663]
[1748390577350,1.41752,2659.3,2659.2,2.05663]
[1748390578052,0.6658,2659.3,2659.2,2.05663]
[1748390581056,1.41752,2659.3,2659.2,2.05663]
[1748390581262,3.2078,2659.6,2659.2,3.18425]
[1748390581561,3.95945,2659.6,2659.5,0.75167]
[1748390581754,5.21321355,2659.6,2659.5,0.75167]
[1748390582057,6.48921355,2659.6,2659.5,0.75167]
[1748390584954,3.35480778,2659.6,2659.5,0.75167]
[1748390585962,3.35555324,2659.6,2659.5,0.75167]
[1748390588966,3.28215901,2659.6,2659.5,0.75167]
[1748390590067,3.35555324,2659.6,2659.5,0.75167]
[1748390590367,3.35647521,2659.6,2659.5,0.75167]
[1748390593271,1.25543098,2659.6,2659.5,0.75167]
[1748390593674,0.75159,2659.8,2659.7,0.75161]
[1748390593869,2.00802257,2659.8,2659.7,0.75161]
[1748390594066,2.65572257,2659.8,2659.7,0.75161]
[1748390594362,1.90413257,2659.8,2659.7,2.06491]
[1748390594567,2.65539637,2659.8,2659.7,2.06491]
[1748390595169,2.7287906,2659.8,2659.7,2.06491]
[1748390595473,1.9772106,2659.8,2659.7,2.06491]
[1748390595772,1.3295106,2659.8,2659.7,2.06491]
[1748390596075,3.8555,2660.2,2660.1,0.7515]
[1748390596272,5.11231426,2660.2,2660.1,0.7515]
[1748390596972,5.11231426,2660.2,2660.1,2.0648]
[1748390597373,5.86378426,2660.2,2660.1,2.0648]
[1748390598070,5.11231426,2660.2,2660.1,2.0648]
[1748390598469,5.86378426,2660.2,2660.1,2.0648]
[1748390598967,5.86331633,2660.2,2660.1,2.0648]
[1748390599270,4.46414633,2660.2,2660.1,2.0648]
[1748390599475,4.46414633,2660.2,2660.1,2.7387]
[1748390599976,5.21561633,2660.2,2660.1,2.7387]
[1748390600179,5.21561633,2660.2,2660.1,2.0648]
[1748390600977,5.84121633,2660.2,2660.1,2.0648]
[1748390601179,7.14531633,2660.2,2660.1,2.0648]
[1748390603078,7.14460858,2660.2,2660.1,2.0648]
[1748390603377,5.88897,2660.2,2660.1,2.0648]
[1748390605779,3.2078,2660.2,2660.1,2.0648]
[1748390605975,1.3777656,2660.4,2660.3,0.75144]
[1748390606176,0.0056356,2660.4,2660.3,0.75144]
[1748390606578,0.0056356,2660.4,2660.3,4.41344]
[1748390613880,5.0056356,2660.4,2659.8,0.75155]
[1748390614075,0.75164,2659.6,2659.5,3.2078]
[1748390614685,0.75164,2659.6,2659.5,3.95947]
[1748390614879,2.05794,2659.6,2659.5,3.95947]
[1748390615083,0.75164,2659.6,2659.5,3.95947]
[1748390615288,0.6476,2660.2,2659.6,1.8791]
[1748390615588,0.7570656,2660.4,2660.3,0.75144]
[1748390615784,2.6329656,2660.4,2660.3,0.75144]
[1748390616377,1.8815356,2660.4,2660.3,0.75144]
[1748390616781,2.6329456,2660.4,2660.3,0.75144]
[1748390617785,0.75144,2660.3,2660.2,2.03715]
[1748390617986,2.60294,2660.3,2660.2,0.75145]
[1748390618383,1.8515,2660.3,2659.8,8.74774]
[1748390618585,2.00319,2660.2,2660.1,0.75147]
[1748390618789,1.2517,2660.2,2660.1,0.75147]
[1748390618989,0.6232,2660.3,2660.2,0.75147]
[1748390619880,0.6232,2660.3,2660.2,1.42217]
[1748390621088,0.6232,2660.3,2660.2,5.08317]
[1748390623587,0.6232,2660.3,2660.2,6.42717]
[1748390623793,1.37464,2660.3,2660.2,6.42717]
[1748390624400,0.6232,2660.3,2660.2,6.42717]
[1748390624599,0.6532356,2660.4,2660.3,0.75144]
[1748390624797,2.56985745,2660.4,2660.3,2.09244]
[1748390625099,3.32126745,2660.4,2660.3,0.75144]
[1748390625399,0.75144,2660.3,2660.2,4.41245]
[1748390625595,2.09664,2660.3,2660.2,4.41245]
[1748390627393,1.3452,2660.3,2660.2,4.41245]
[1748390627599,2.09664,2660.3,2660.2,5.76005]
[1748390629096,1.3452,2660.3,2660.2,5.76005]
[1748390629301,2.09664,2660.3,2660.2,5.76005]
[1748390633196,3.36654681,2660.3,2660.2,5.76005]
[1748390633396,3.36653859,2660.3,2660.2,5.76005]
[1748390633599,2.09664,2660.3,2660.2,5.76005]
[1748390634693,1.3452,2660.3,2660.2,5.76005]
[1748390634901,0.0056356,2660.4,2660.3,0.75144]
[1748390635204,0.0056356,2660.4,2660.3,2.65634]
[1748390637805,1.27381513,2660.4,2660.3,2.65634]
[1748390638207,0.0056356,2660.4,2660.3,2.65634]
[1748390639304,0.7570456,2660.4,2660.3,2.65634]
[1748390640004,0.0056356,2660.4,2660.3,2.65634]
[1748390640806,0.7570456,2660.4,2660.3,2.65634]
[1748390641006,0.7570456,2660.4,2660.3,19.22734]
[1748390641406,0.7570456,2660.4,2660.3,19.22934]
[1748390641603,2.0015456,2660.4,2660.3,19.22934]
[1748390642209,0.75147,2660.3,2660.2,4.42844]
[1748390642404,2.65447,2660.3,2660.2,4.42844]
[1748390642611,3.92354048,2660.3,2660.2,4.42844]
[1748390644711,2.65447,2660.3,2660.2,4.42844]
[1748390644911,3.92418433,2660.3,2660.2,4.42844]
[1748390646917,3.92418433,2660.3,2660.2,4.42847]
[1748390648719,1.92821433,2660.3,2660.2,4.42847]
[1748390649118,2.6812305,2660.3,2660.2,4.42847]
[1748390649317,1.9297905,2660.3,2660.2,4.42847]
[1748390650817,2.6812305,2660.3,2660.2,4.42847]
[1748390653523,2.67910373,2660.3,2660.2,4.42847]
[1748390656119,1.92766373,2660.3,2660.2,4.42847]
[1748390656920,2.67910373,2660.3,2660.2,4.42847]
[1748390657829,2.67904909,2660.3,2660.2,4.42847]
[1748390661629,1.92760909,2660.3,2660.2,4.42847]
[1748390662131,2.67904909,2660.3,2660.2,0.75147]
[1748390662328,2.67895491,2660.3,2660.2,0.75147]
[1748390662625,1.26901491,2660.3,2660.2,0.75147]
[1748390662830,0.6363,2660.9,2660.8,0.7513]
[1748390663128,0.75127,2660.9,2660.8,21.6023]
[1748390663433,0.7513,2660.8,2660.7,17.94433]
[1748390663722,2.0536,2660.8,2660.7,0.75133]
[1748390663928,0.75135,2660.6,2660.5,19.2994756]
[1748390664131,3.36085,2660.7,2660.6,0.75135]
[1748390665329,3.36085,2660.7,2660.6,2.11375]
[1748390666327,0.75135,2660.6,2660.5,0.0056356]
[1748390666526,5.27045,2660.6,2660.5,0.0056356]
[1748390666723,5.27045,2660.6,2660.5,0.7570156]
[1748390671333,5.0986658,2660.6,2660.5,0.7570156]
[1748390671727,5.0986658,2660.6,2660.5,0.0056356]
[1748390673129,10.0986658,2660.6,2660.5,0.0056356]
[1748390673531,0.75152,2660.0,2659.9,3.661]
[1748390673830,0.75152,2660.0,2659.9,4.41255]
[1748390674636,2.03902,2660.0,2659.9,4.41255]
[1748390674844,3.2920151,2660.0,2659.9,4.41255]
[1748390675335,0.75158,2659.8,2659.7,2.1060256]
[1748390675540,0.75158,2659.8,2659.7,0.7572456]
[1748390676440,0.75158,2659.8,2659.7,0.0056356]
[1748390677743,2.05138,2659.8,2659.7,0.0056356]
[1748390677945,3.30346108,2659.8,2659.7,0.0056356]
[1748390678742,44.10346108,2659.8,2659.7,0.0056356]
[1748390679637,44.10223263,2659.8,2659.7,0.0056356]
[1748390683039,0.75175,2659.2,2659.1,1.3266]
[1748390683841,2.05755,2659.2,2659.1,1.3266]
[1748390684142,0.75181,2659.0,2658.9,0.6794]
[1748390684337,0.75184,2658.9,2658.8,1.3123]
[1748390684636,0.75189,2658.7,2658.6,2.09212]
[1748390685239,0.75192,2658.7,2658.6,0.75189]
[1748390685442,0.75192,2658.6,2658.5,2.11293]
[1748390685641,0.75192,2658.6,2658.5,0.6794]
[1748390686143,0.75195,2658.5,2658.4,5.26126]
[1748390686333,1.38185,2658.5,2658.4,1.3015]
[1748390686739,1.38185,2658.5,2658.4,2.05348]
[1748390690642,3.95972,2658.7,2658.6,0.75192]
[1748390693251,0.75195,2658.6,2658.5,0.75193]
[1748390694147,41.55195,2658.6,2658.5,0.75193]
[1748390695044,41.55195,2658.6,2658.4,1.3015]
[1748390695045,40.8,2658.6,2658.4,1.3015]
[1748390695249,0.75195,2658.5,2658.4,2.05346]
[1748390695545,3.2078,2658.7,2658.4,1.37489423]
[1748390695748,4.5411,2659.3,2659.2,0.75175]
[1748390696049,0.75184,2659.0,2658.9,0.75182]
[1748390696244,0.75189,2658.7,2658.6,3.95969]
[1748390696449,0.75188,2658.8,2658.7,0.75186]
[1748390696650,0.75188,2658.8,2658.7,2.05616]
[1748390698353,1.3128,2659.0,2658.7,3.18403]
[1748390698655,0.75181,2659.1,2659.0,0.75178]
[1748390698856,0.75181,2659.0,2658.9,1.42752]
[1748390699153,0.75181,2659.0,2658.9,2.04412]
[1748390700455,0.75181,2659.0,2658.9,1.2923]
[1748390700657,0.75183,2658.9,2658.8,1.2502]
[1748390700953,1.42933,2658.9,2658.8,1.2502]
[1748390701556,1.42933,2658.9,2658.8,2.00206]
[1748390701952,1.42933,2658.9,2658.8,1.2502]
[1748390702151,0.75189,2658.7,2658.6,0.6166]
[1748390702861,0.75189,2658.7,2658.6,1.8972]
[1748390703253,0.75189,2658.7,2658.6,2.64912]
[1748390704256,0.75189,2658.7,2658.6,1.2806]
[1748390705146,2.00126637,2658.7,2658.6,1.2806]
[1748390707953,2.00271756,2658.7,2658.6,1.2806]
[1748390709158,1.87981,2658.6,2658.3,5.07118]
[1748390709456,0.75198,2658.4,2658.3,5.74468]
[1748390711656,0.752,2658.3,2658.2,1.2952]
[1748390711855,0.75206,2658.1,2658.0,0.6413]
[1748390712061,0.75212,2657.9,2657.8,0.6486]
[1748390712266,0.75212,2657.9,2657.8,1.2899]
[1748390712553,0.75212,2657.9,2657.8,2.04205]
[1748390713159,0.75212,2657.9,2657.8,1.2899]
[1748390713951,0.7522,2657.6,2657.5,3.96002]
[1748390714157,0.7522,2657.6,2657.5,4.63632]
[1748390714454,0.7522,2657.7,2657.6,0.75217]
[1748390715460,0.7522,2657.6,2657.5,3.8841]
[1748390715859,0.7522,2657.6,2657.5,4.63633]
[1748390716055,0.7522,2657.6,2657.5,3.8841]
[1748390716260,1.4282,2657.6,2657.5,3.8841]
[1748390716458,1.4282,2657.6,2657.5,4.63633]
[1748390716657,1.4282,2657.6,2657.5,1.42853]
[1748390716966,0.7522,2657.6,2657.5,1.42853]
[1748390717169,0.7522,2657.6,2657.5,0.6763]
[1748390717966,0.7522,2657.6,2657.5,1.42853]
[1748390719656,2.0775,2657.7,2657.6,0.7522]
[1748390720366,0.7522,2657.6,2657.5,1.50189423]
[1748390721557,4.6217056,2657.8,2657.7,0.75217]
[1748390721959,0.7522,2657.7,2657.6,0.75217]
[1748390722159,0.7522,2657.6,2657.5,1.50190423]
[1748390723165,0.7522,2657.6,2657.5,0.07339423]
[1748390724163,0.75234,2657.1,2657.0,0.6811]
[1748390724362,3.2078,2657.2,2657.0,0.6811]
[1748390724567,3.2078,2657.2,2657.1,0.75234]
[1748390725371,0.75224,2657.5,2657.1,0.75234]
[1748390725372,3.2078,2657.5,2657.1,1.88087]
[1748390725567,0.7523,2657.4,2657.3,0.75228]
[1748390726263,4.5183,2657.5,2657.4,0.75226]
[1748390726264,5.27055,2657.5,2657.4,0.75226]
[1748390726564,3.96005,2657.5,2657.4,0.75226]
[1748390726769,5.27055,2657.5,2657.4,0.75226]
[1748390727465,5.27055,2657.5,2656.9,22.29179]
[1748390727466,0.75237,2657.0,2656.9,0.75239]
[1748390728759,0.74520557,2657.0,2656.9,0.75239]
[1748390730570,0.74520557,2657.0,2656.9,2.08539]
[1748390732063,0.74520557,2657.0,2656.9,0.75239]
[1748390732264,0.75237,2657.0,2656.9,0.75239]
[1748390733680,0.75237,2657.0,2656.9,2.01359]
[1748390735076,0.75237,2657.0,2656.9,1.2612]
[1748390735380,0.75243,2656.8,2656.7,1.37996]
[1748390735680,0.75246,2656.7,2656.6,2.02578]
[1748390736179,0.75246,2656.7,2656.6,0.75248]
[1748390736376,0.75248,2656.6,2656.5,1.2733]
[1748390736581,2.64068,2656.6,2656.5,1.2733]
[1748390736778,2.64068,2656.6,2656.5,2.02581]
[1748390737183,2.64068,2656.6,2656.5,1.2733]
[1748390738083,0.75251,2656.5,2656.4,3.96032]
[1748390738284,0.75251,2656.5,2656.4,5.20912]
[1748390738580,1.2434,2656.5,2656.2,3.665]
[1748390738780,0.6397,2656.4,2656.3,0.75257]
[1748390738982,0.6397,2656.4,2656.3,2.00137]
[1748390739181,1.39227,2656.4,2656.3,2.00137]
[1748390739880,1.39227,2656.4,2656.3,1.2488]
[1748390740379,1.39227,2656.4,2656.3,2.00137]
[1748390750399,1.2434,2656.5,2656.4,0.75253]
[1748390750597,3.9602,2656.9,2656.8,0.75242]
[1748390750897,0.75245,2656.7,2656.6,2.02106]
[1748390755399,0.7525,2656.5,2656.4,4.3]
[1748390755709,0.7525,2656.5,2656.4,1.3602]
[1748390756200,2.0695,2656.5,2656.4,1.3602]
[1748390756396,2.0695,2656.5,2656.4,2.11273]
[1748390757396,2.0695,2656.5,2656.4,1.3602]
[1748390758592,2.0695,2656.5,2656.4,2.11273]
[1748390759797,0.7525,2656.5,2656.4,2.11273]
[1748390759992,2.06988,2656.7,2656.6,0.75248]
[1748390760300,1.26478203,2656.7,2656.6,0.75248]
[1748390760494,1.42125,2657.1,2657.0,0.75236]
[1748390760699,2.01753597,2657.1,2657.0,0.75236]
[1748390760888,0.75235,2657.1,2657.0,0.75236]
[1748390761291,1.3174,2657.3,2657.2,0.75231]
[1748390761497,0.75219,2657.6,2657.5,0.75219]
[1748390761701,2.73668,2657.7,2657.6,0.75219]
[1748390762203,2.67472663,2657.7,2657.6,0.75219]